bitfinex-derivatives/quotes_SOLF0:USTF0_20250131
["timestamp","ask_amount","ask_price","bid_price","bid_amount"]
[1738323820453,4.22248523,238.63,238.58,0.02766792]
[1738323820744,0.03168523,238.63,238.58,0.02766792]
[1738323821745,4.1909,238.62,238.58,0.02766792]
[1738323822848,4.22248523,238.63,238.58,0.02766792]
[1738323823050,0.03168523,238.63,238.58,0.02766792]
[1738323824951,4.1914,238.59,238.58,0.02766792]
[1738323829553,4.1924,238.54,238.46,11.39538061]
[1738323830054,12.58,238.59,238.48,4.1934]
[1738323830553,12.58,238.6,238.48,4.1934]
[1738323830848,0.02866574,238.56,238.51,0.02743771]
[1738323831757,4.1922,238.55,238.51,0.02743771]
[1738323832351,0.02866574,238.56,238.51,0.02743771]
[1738323832547,0.02866574,238.56,238.52,11.39538061]
[1738323833251,0.02866574,238.56,238.51,0.02743771]
[1738323833455,4.1922,238.55,238.51,0.02743771]
[1738323835058,4.22066574,238.56,238.51,0.02743771]
[1738323835250,0.02866574,238.56,238.51,0.02743771]
[1738323836354,4.1924,238.54,238.51,0.02743771]
[1738323836553,0.02866574,238.56,238.51,0.02743771]
[1738323836854,4.1922,238.55,238.51,0.02743771]
[1738323839356,4.1924,238.54,238.51,0.02743771]
[1738323839657,11.39538061,238.53,238.51,0.02743771]
[1738323839954,11.39538061,238.53,238.37,11.39538061]
[1738323840160,11.39538061,238.5,238.37,11.39538061]
[1738323840559,1.425,238.52,238.37,11.39538061]
[1738323841259,0.02930041,238.47,238.42,0.02738676]
[1738323844862,4.1938,238.46,238.42,0.02738676]
[1738323845258,0.02930041,238.47,238.42,0.02738676]
[1738323845564,4.1941,238.44,238.42,0.02738676]
[1738323846262,4.194,238.45,238.42,0.02738676]
[1738323849262,4.1941,238.44,238.42,0.02738676]
[1738323851656,4.1943,238.43,238.42,0.02738676]
[1738323852159,0.02930041,238.47,238.42,0.02738676]
[1738323852367,4.1937,238.46,238.42,0.02738676]
[1738323852865,4.1939,238.45,238.42,0.02738676]
[1738323853164,0.02930041,238.47,238.42,0.02738676]
[1738323853365,11.42468102,238.47,238.42,0.02738676]
[1738323853555,12.58,238.46,238.42,0.02738676]
[1738323854264,11.39538061,238.44,238.28,12.79188061]
[1738323854462,11.39538061,238.41,238.28,12.79188061]
[1738323854759,4.1953,238.37,238.26,2.843]
[1738323855158,4.1958,238.34,238.26,2.843]
[1738323855562,0.02819366,238.33,238.28,0.02970115]
[1738323856362,4.22419366,238.33,238.28,0.02970115]
[1738323856558,0.02819366,238.33,238.28,0.02970115]
[1738323861369,4.1962,238.32,238.28,0.02970115]
[1738323861963,4.1964,238.31,238.28,0.02970115]
[1738323862159,0.02819366,238.33,238.28,0.02970115]
[1738323862568,4.1964,238.31,238.28,0.02970115]
[1738323862868,0.02819366,238.33,238.28,0.02970115]
[1738323863272,4.1967,238.29,238.28,0.02970115]
[1738323864770,15.59208061,238.29,238.28,0.02970115]
[1738323864972,4.1971,238.27,238.17,1.3806]
[1738323865368,11.39538061,238.29,238.19,4.1985]
[1738323865562,11.39538061,238.29,238.17,1.3806]
[1738323865563,4.1973,238.26,238.17,1.3806]
[1738323866174,0.0293964,238.24,238.19,0.02858577]
[1738323868379,0.0293964,238.24,238.2,4.1983]
[1738323869181,0.0293964,238.24,238.21,4.1981]
[1738323869777,0.0293964,238.24,238.19,0.02858577]
[1738323870482,0.0293964,238.24,238.23,4.1978]
[1738323871084,4.196,238.33,238.26,4.1972]
[1738323871380,11.39538061,238.35,238.22,11.39538061]
[1738323871880,6.9556,238.36,238.28,4.1967]
[1738323872279,0.0289691,238.34,238.3,0.03141734]
[1738323874974,0.0289691,238.34,238.31,11.39538061]
[1738323875184,0.0289691,238.34,238.31,14.10278061]
[1738323876385,0.0289691,238.34,238.33,4.196]
[1738323878390,4.1946,238.41,238.34,4.1957]
[1738323878590,4.1946,238.41,238.31,15.47458061]
[1738323879293,12.58,238.46,238.34,11.39538061]
[1738323879491,0.02689349,238.38,238.34,11.42366581]
[1738323879691,0.02689349,238.38,238.37,4.1953]
[1738323880089,83.06,238.45,238.34,11.42366581]
[1738323880690,87.2539,238.45,238.39,4.1949]
[1738323881089,83.06,238.45,238.37,11.39538061]
[1738323881291,0.02867338,238.44,238.4,0.02946042]
[1738323881994,0.02867338,238.44,238.41,4.1945]
[1738323882293,0.02867338,238.44,238.4,0.02946042]
[1738323882695,0.02867338,238.44,238.43,4.1943]
[1738323884194,0.02867338,238.44,238.4,0.02946042]
[1738323884391,0.02867338,238.44,238.41,4.1945]
[1738323884797,0.02867338,238.44,238.4,0.02946042]
[1738323885397,0.02867338,238.44,238.41,4.1944]
[1738323885597,0.02867338,238.44,238.4,0.02946042]
[1738323886002,0.02867338,238.44,238.4,11.42484103]
[1738323886298,0.02867338,238.44,238.43,4.1943]
[1738323887795,11.39538061,238.53,238.46,4.1937]
[1738323888188,4.1929,238.51,238.41,1.3195]
[1738323888394,4.1929,238.51,238.42,1.3575]
[1738323888790,2.78,238.55,238.42,1.3575]
[1738323888998,4.1926,238.53,238.49,4.1932]
[1738323889197,0.0278803,238.51,238.49,4.1932]
[1738323889397,0.0278803,238.51,238.49,4.22394688]
[1738323889998,0.0278803,238.51,238.5,4.193]
[1738323890698,11.39538061,238.59,238.49,0.03074688]
[1738323891298,11.39538061,238.62,238.49,0.03074688]
[1738323891490,4.1915,238.59,238.53,4.1924]
[1738323891691,14.17538061,238.62,238.46,11.39538061]
[1738323891890,0.02825776,238.58,238.54,0.02947982]
[1738323892096,0.02825776,238.58,238.55,4.1921]
[1738323892500,0.02825776,238.58,238.54,0.02947982]
[1738323893196,0.02825776,238.58,238.57,4.1918]
[1738323895400,0.02825776,238.58,238.56,4.192]
[1738323895593,0.02825776,238.58,238.54,0.02947982]
[1738323895797,4.1918,238.57,238.54,0.02947982]
[1738323896001,0.02825776,238.58,238.54,0.02947982]
[1738323896404,4.1921,238.55,238.54,0.02947982]
[1738323897196,0.02825776,238.58,238.54,0.02947982]
[1738323897393,4.192,238.56,238.54,0.02947982]
[1738323897597,0.02825776,238.58,238.54,0.02947982]
[1738323898902,0.02825776,238.58,238.57,4.1918]
[1738323900400,83.08,238.63,238.61,4.1909]
[1738323900602,83.08,238.63,238.55,11.39538061]
[1738323900995,4.1904,238.66,238.61,4.191]
[1738323901197,4.1904,238.66,238.55,11.39538061]
[1738323901600,0.02678827,238.63,238.58,11.42436438]
[1738323901808,4.1897,238.7,238.61,11.39538061]
[1738323902002,11.39538061,238.77,238.61,11.39538061]
[1738323902305,4.1886,238.76,238.68,4.1898]
[1738323902504,11.39538061,238.8,238.68,4.1898]
[1738323902906,0.77010606,238.79,238.68,4.1898]
[1738323903105,0.02886862,238.76,238.72,0.02834495]
[1738323903907,4.189,238.74,238.72,0.02834495]
[1738323905004,4.21746862,238.76,238.72,0.02834495]
[1738323905200,0.02886862,238.76,238.72,0.02834495]
[1738323907211,4.189,238.73,238.72,0.02834495]
[1738323907711,4.1897,238.69,238.63,4.1906]
[1738323908612,11.39538061,238.7,238.6,5.6107]
[1738323908808,0.02868647,238.68,238.64,0.03002013]
[1738323909208,4.1902,238.66,238.64,0.03002013]
[1738323909709,4.1904,238.65,238.64,0.03002013]
[1738323911412,4.1909,238.63,238.56,4.1919]
[1738323911608,11.39538061,238.64,238.54,4.1922]
[1738323911815,12.58,238.63,238.52,49.04492285]
[1738323912110,11.39538061,238.61,238.47,2.7071]
[1738323912610,0.02913723,238.56,238.52,0.02897612]
[1738323912815,0.02913723,238.56,238.53,4.1924]
[1738323913115,0.02913723,238.56,238.52,0.02897612]
[1738323915016,0.02913723,238.56,238.52,4.22167612]
[1738323915615,4.22113723,238.56,238.52,0.02897612]
[1738323916517,0.02913723,238.56,238.52,0.02897612]
[1738323916713,4.1922,238.55,238.52,0.02897612]
[1738323917313,0.02913723,238.56,238.52,0.02897612]
[1738323917817,0.02913723,238.56,238.53,4.1924]
[1738323918416,4.1922,238.55,238.52,0.02897612]
[1738323918614,0.02913723,238.56,238.52,0.02897612]
[1738323919120,4.22113723,238.56,238.52,0.02897612]
[1738323919323,0.02913723,238.56,238.52,0.02897612]
[1738323919616,4.1925,238.53,238.52,0.02897612]
[1738323920420,11.39538061,238.55,238.41,2.7399]
[1738323920811,4.1929,238.51,238.43,4.1942]
[1738323921022,11.39538061,238.46,238.4,114.19287233]
[1738323921417,4.1944,238.42,238.4,114.19287233]
[1738323921722,4.1944,238.42,238.41,0.02700141]
[1738323922123,0.03119192,238.45,238.36,114.19287233]
[1738323922423,4.1942,238.44,238.39,0.02859226]
[1738323922613,0.03119192,238.45,238.39,0.02859226]
[1738323923520,0.03119192,238.45,238.4,4.1947]
[1738323923821,0.03119192,238.45,238.39,0.02859226]
[1738323924024,0.03119192,238.45,238.4,4.1946]
[1738323924723,0.03119192,238.45,238.41,4.1946]
[1738323925420,0.03119192,238.45,238.4,4.1946]
[1738323925725,0.03119192,238.45,238.39,0.02859226]
[1738323926027,0.03119192,238.45,238.41,4.1944]
[1738323926820,0.03119192,238.45,238.39,0.02859226]
[1738323927822,11.39538061,238.43,238.39,0.02859226]
[1738323928026,4.1946,238.42,238.39,0.02859226]
[1738323928227,11.39538061,238.43,238.39,0.02859226]
[1738323928526,4.1945,238.42,238.39,0.02859226]
[1738323928923,11.39538061,238.43,238.39,0.02859226]
[1738323929621,4.1948,238.4,238.39,0.02859226]
[1738323929926,11.39538061,238.4,238.28,4.1585]
[1738323930322,4.1956,238.36,238.29,4.1967]
[1738323931023,4.1957,238.35,238.27,4.1969]
[1738323931227,4.22603524,238.35,238.3,0.02764522]
[1738323931828,0.03033524,238.35,238.3,0.02764522]
[1738323934024,11.39538061,238.34,238.3,0.02764522]
[1738323934835,4.1964,238.31,238.3,0.02764522]
[1738323936233,11.39538061,238.31,238.16,11.39538061]
[1738323936935,4.1965,238.3,238.23,4.1977]
[1738323937333,0.0269755,238.29,238.24,0.03014866]
[1738323940142,0.0269755,238.29,238.24,4.22754866]
[1738323942642,0.0269755,238.29,238.24,0.03014866]
[1738323943041,4.1974,238.25,238.24,0.03014866]
[1738323946143,11.39538061,238.28,238.24,0.03014866]
[1738323947740,4.1974,238.25,238.24,0.03014866]
[1738323956847,26.74235611,238.29,238.24,0.03014866]
[1738323957052,0.0269755,238.29,238.24,0.03014866]
[1738323957651,4.197,238.28,238.24,0.03014866]
[1738323958053,0.0269755,238.29,238.24,0.03014866]
[1738323959158,4.1974,238.25,238.24,0.03014866]
[1738323962365,4.1973,238.26,238.24,0.03014866]
[1738323962560,0.0269755,238.29,238.24,0.03014866]
[1738323962963,4.1971,238.27,238.24,0.03014866]
[1738323963159,0.0269755,238.29,238.24,0.03014866]
[1738323963659,4.1973,238.26,238.24,0.03014866]
[1738323964863,4.1971,238.28,238.24,0.03014866]
[1738323965065,0.0269755,238.29,238.24,0.03014866]
[1738323966761,0.0269755,238.29,238.24,4.22764866]
[1738323966955,0.0269755,238.29,238.24,0.03014866]
[1738323967460,0.0269755,238.29,238.24,4.22774866]
[1738323968555,0.0269755,238.29,238.24,0.03014866]
[1738323968759,11.42235611,238.29,238.24,0.03014866]
[1738323969061,11.39538061,238.26,238.24,0.03014866]
[1738323969867,4.1974,238.25,238.24,0.03014866]
[1738323971261,11.42235611,238.29,238.24,0.03014866]
[1738323972260,4.1971,238.27,238.24,0.03014866]
[1738323973165,11.42235611,238.29,238.24,0.03014866]
[1738323973665,4.1974,238.25,238.24,0.03014866]
[1738323978373,4.1972,238.27,238.24,0.03014866]
[1738323978571,0.0269755,238.29,238.24,0.03014866]
[1738323979369,0.0269755,238.29,238.24,4.22764866]
[1738323980973,16.37745804,238.38,238.26,4.1972]
[1738323981170,16.37745804,238.38,238.25,14.29298061]
[1738323982068,0.0264595,238.34,238.29,0.03164984]
[1738323983168,4.196,238.33,238.29,0.03164984]
[1738323984574,0.0264595,238.34,238.29,4.22834984]
[1738323984873,11.39538061,238.44,238.3,1.3206]
[1738323985072,11.39538061,238.47,238.35,4.1955]
[1738323985371,11.39538061,238.47,238.36,1.4507]
[1738323985871,0.02937634,238.44,238.39,0.03070429]
[1738323986073,4.1945,238.42,238.39,0.03070429]
[1738323986470,0.02937634,238.44,238.39,0.03070429]
[1738323986775,4.1945,238.42,238.39,0.03070429]
[1738323988274,4.1948,238.4,238.39,0.03070429]
[1738323988470,15.59018061,238.4,238.39,0.03070429]
[1738323990875,15.59018061,238.4,238.39,4.29e-06]
[1738323993568,4.1946,238.42,238.39,4.29e-06]
[1738323993773,11.39538061,238.43,238.39,4.29e-06]
[1738323994779,4.1948,238.41,238.39,4.29e-06]
[1738323995169,0.02937634,238.44,238.39,4.29e-06]
[1738323995871,0.02937634,238.44,238.4,4.1948]
[1738323996080,0.02937634,238.44,238.39,4.29e-06]
[1738323997679,4.1944,238.42,238.39,4.29e-06]
[1738323998179,4.1948,238.4,238.39,4.29e-06]
[1738323998379,15.59018061,238.4,238.39,4.29e-06]
[1738324005988,4.1948,238.4,238.39,4.29e-06]
[1738324007186,11.39538061,238.43,238.39,4.29e-06]
[1738324008392,4.1948,238.41,238.39,4.29e-06]
[1738324009286,4.1948,238.4,238.39,4.29e-06]
[1738324012392,15.59018061,238.4,238.39,4.29e-06]
[1738324013098,4.1948,238.4,238.39,4.29e-06]
[1738324014697,11.49412259,238.42,238.39,4.29e-06]
[1738324014996,7.29952259,238.42,238.39,4.29e-06]
[1738324015497,4.1943,238.43,238.39,4.29e-06]
[1738324015699,0.02937634,238.44,238.4,4.1947]
[1738324015995,0.02937634,238.44,238.4,7.29952259]
[1738324016595,0.02937634,238.44,238.41,4.1944]
[1738324017595,0.02937634,238.44,238.4,4.1948]
[1738324017892,0.02937634,238.44,238.39,4.29e-06]
[1738324018703,0.02937634,238.44,238.39,4.19480429]
[1738324018902,0.02937634,238.44,238.39,4.29e-06]
[1738324019102,0.02937634,238.44,238.4,2.7125]
[1738324019604,0.02937634,238.44,238.42,4.1944]
[1738324019994,41.51709877,238.54,238.4,14.1126312]
[1738324020201,94.4001312,238.55,238.4,14.1126312]
[1738324020398,0.7708413,238.54,238.4,14.1126312]
[1738324020601,94.4001312,238.55,238.4,14.1126312]
[1738324020802,0.77084123,238.54,238.4,14.1126312]
[1738324021003,94.4001312,238.55,238.4,14.1126312]
[1738324021203,0.02646875,238.49,238.45,0.03081505]
[1738324021604,0.02646875,238.49,238.45,4.22461505]
[1738324021802,0.02646875,238.49,238.45,0.03081505]
[1738324022299,0.02646875,238.49,238.47,4.1935]
[1738324022503,0.02646875,238.49,238.45,0.03081505]
[1738324023099,0.02646875,238.49,238.46,4.1936]
[1738324023296,0.02646875,238.49,238.45,0.03081505]
[1738324023904,0.02646875,238.49,238.47,4.1935]
[1738324024511,0.02646875,238.49,238.45,0.03081505]
[1738324025106,4.1937,238.46,238.45,0.03081505]
[1738324026806,15.5938312,238.46,238.45,0.03081505]
[1738324031511,4.1937,238.46,238.45,0.03081505]
[1738324032309,11.4001312,238.61,238.45,0.03081505]
[1738324032613,0.77085443,238.6,238.47,11.4001312]
[1738324033014,4.1915,238.59,238.47,11.4001312]
[1738324033210,11.4001312,238.61,238.47,11.4001312]
[1738324033609,0.03052705,238.56,238.52,0.02772417]
[1738324034109,11.4001312,238.55,238.52,0.02772417]
[1738324034315,4.1934,238.48,238.4,4.1946]
[1738324034710,4.1934,238.48,238.41,4.1946]
[1738324035510,0.02841565,238.47,238.42,0.02702964]
[1738324038011,4.1941,238.44,238.42,0.02702964]
[1738324039019,0.02841565,238.47,238.42,0.02702964]
[1738324039316,4.1943,238.43,238.42,0.02702964]
[1738324040112,4.1941,238.45,238.42,0.02702964]
[1738324040815,4.1941,238.44,238.42,0.02702964]
[1738324042112,0.02841565,238.47,238.42,4.22142964]
[1738324042815,4.22201565,238.47,238.42,0.02702964]
[1738324043118,0.02841565,238.47,238.42,0.02702964]
[1738324044717,4.22201565,238.47,238.42,4.22132964]
[1738324044923,0.02841565,238.47,238.42,4.22132964]
[1738324047021,0.02841565,238.47,238.44,4.194]
[1738324047418,0.02841565,238.47,238.42,0.02702964]
[1738324047726,0.02841565,238.47,238.43,4.1941]
[1738324048124,0.02841565,238.47,238.42,0.02702964]
[1738324049126,4.22201565,238.47,238.42,4.22142964]
[1738324050631,7.296952,238.46,238.42,4.22142964]
[1738324052835,7.296952,238.46,238.42,0.02702964]
[1738324053036,0.02841565,238.47,238.46,4.1937]
[1738324055031,0.02841565,238.47,238.42,7.32398164]
[1738324055032,0.02841565,238.47,238.42,0.02702964]
[1738324055237,7.296952,238.45,238.42,0.02702964]
[1738324056737,7.296952,238.45,238.42,4.22142964]
[1738324058039,0.02841565,238.47,238.42,7.32398164]
[1738324058436,0.02841565,238.47,238.44,4.194]
[1738324059438,0.02841565,238.47,238.45,4.1938]
[1738324059738,0.02841565,238.47,238.46,7.296952]
[1738324059938,0.02841565,238.47,238.44,7.296952]
[1738324060239,0.02841565,238.47,238.46,4.1937]
[1738324063440,0.02841565,238.47,238.45,4.1939]
[1738324063936,11.51896765,238.47,238.43,4.1941]
[1738324064145,7.32536765,238.47,238.42,0.02702964]
[1738324064438,7.296952,238.43,238.42,0.02702964]
[1738324065339,7.296952,238.45,238.42,0.02702964]
[1738324066237,11.491052,238.45,238.42,0.02702964]
[1738324066640,4.1941,238.45,238.42,0.02702964]
[1738324067641,4.1941,238.45,238.42,4.22142964]
[1738324068640,0.02841565,238.47,238.42,0.02702964]
[1738324068843,4.22211565,238.47,238.43,4.1942]
[1738324069145,0.02841565,238.47,238.43,4.1942]
[1738324069344,4.1937,238.46,238.42,4.22142964]
[1738324070245,0.02841565,238.47,238.42,0.02702964]
[1738324070744,0.02841565,238.47,238.44,4.194]
[1738324070946,0.02841565,238.47,238.42,0.02702964]
[1738324072345,4.1938,238.46,238.42,0.02702964]
[1738324072541,0.02841565,238.47,238.42,0.02702964]
[1738324073746,4.1942,238.44,238.42,0.02702964]
[1738324074242,0.02841565,238.47,238.42,0.02702964]
[1738324074447,4.1943,238.43,238.42,0.02702964]
[1738324074947,0.02841565,238.47,238.42,0.02702964]
[1738324075649,4.1943,238.43,238.42,0.02702964]
[1738324075955,0.02841565,238.47,238.42,0.02702964]
[1738324076543,4.1942,238.44,238.42,0.02702964]
[1738324077347,4.1939,238.46,238.42,0.02702964]
[1738324078051,4.194,238.45,238.42,0.02702964]
[1738324078744,4.1941,238.44,238.42,0.02702964]
[1738324080345,11.40235818,238.46,238.42,0.02702964]
[1738324080551,4.1943,238.43,238.42,0.02702964]
[1738324081152,4.1941,238.44,238.42,0.02702964]
[1738324082152,11.40235818,238.46,238.42,0.02702964]
[1738324082446,4.1943,238.43,238.42,0.02702964]
[1738324082845,15.59665818,238.43,238.42,0.02702964]
[1738324083152,4.195,238.39,238.35,4.1956]
[1738324084251,4.22143006,238.39,238.35,4.22424513]
[1738324084451,0.02643006,238.39,238.35,0.02864513]
[1738324085048,0.02643006,238.39,238.38,4.1951]
[1738324085546,0.02643006,238.39,238.37,4.1952]
[1738324085747,0.02643006,238.39,238.35,0.02864513]
[1738324086548,0.02643006,238.39,238.36,4.1955]
[1738324086748,0.02643006,238.39,238.35,0.02864513]
[1738324087254,0.02643006,238.39,238.37,4.1951]
[1738324089764,7.32645709,238.39,238.35,0.02864513]
[1738324089965,7.30002703,238.37,238.35,0.02864513]
[1738324090764,4.1952,238.38,238.35,0.02864513]
[1738324090967,7.32645709,238.39,238.35,0.02864513]
[1738324091470,11.52155709,238.39,238.35,4.22424513]
[1738324091768,7.32645709,238.39,238.35,0.02864513]
[1738324092768,4.1953,238.38,238.35,0.02864513]
[1738324093566,4.1953,238.38,238.35,4.22424513]
[1738324095066,7.32645709,238.39,238.36,4.1954]
[1738324095368,7.32645709,238.39,238.35,0.02864513]
[1738324095568,0.02643006,238.39,238.35,0.02864513]
[1738324095863,0.02643006,238.39,238.35,7.32867216]
[1738324096069,0.02643006,238.39,238.38,4.1951]
[1738324101175,0.02643006,238.39,238.35,0.02864513]
[1738324101375,7.30002703,238.36,238.35,0.02864513]
[1738324102775,11.49552703,238.36,238.35,0.02864513]
[1738324104477,7.30002703,238.36,238.35,0.02864513]
[1738324105070,7.30002703,238.38,238.35,0.02864513]
[1738324105270,0.02643006,238.39,238.35,0.02864513]
[1738324105572,7.30002703,238.38,238.36,4.1953]
[1738324105776,7.30002703,238.38,238.35,0.02864513]
[1738324106281,0.02643006,238.39,238.38,4.1951]
[1738324107477,0.02643006,238.39,238.36,4.1955]
[1738324107678,7.30002703,238.37,238.36,4.1955]
[1738324108584,7.30002703,238.37,238.35,0.02864513]
[1738324109884,4.1955,238.36,238.35,0.02864513]
[1738324117388,7.30002703,238.37,238.35,0.02864513]
[1738324117687,11.49532703,238.37,238.35,0.02864513]
[1738324121290,7.30002703,238.37,238.35,0.02864513]
[1738324123197,7.30002703,238.37,238.27,1.4339]
[1738324123395,7.30002703,238.31,238.3,4.1964]
[1738324124194,7.30002703,238.31,238.28,4.22471501]
[1738324124589,7.30002703,238.31,238.28,0.02801501]
[1738324125094,11.49642703,238.31,238.28,4.22491501]
[1738324125290,0.02830598,238.33,238.28,4.22491501]
[1738324125291,7.32833301,238.33,238.28,0.02801501]
[1738324125495,0.02830598,238.33,238.28,0.02801501]
[1738324125895,0.02830598,238.33,238.31,4.1963]
[1738324126093,7.32833301,238.33,238.31,4.1963]
[1738324127198,7.32833301,238.33,238.28,0.02801501]
[1738324127199,0.02830598,238.33,238.32,4.1962]
[1738324129497,7.30002703,238.39,238.38,4.1951]
[1738324132401,7.30002703,238.39,238.36,0.02979237]
[1738324132598,7.30002703,238.37,238.36,4.22509237]
[1738324143109,7.30002703,238.37,238.36,0.02979237]
[1738324145917,11.49532703,238.37,238.36,0.02979237]
[1738324146513,4.1962,238.33,238.25,137.96200513]
[1738324146720,7.30002703,238.29,238.25,137.96200513]
[1738324147014,7.30002703,238.29,238.28,4.1969]
[1738324148721,0.0265005,238.31,238.3,4.1965]
[1738324170337,11.49482703,238.4,238.36,4.1954]
[1738324170841,1.4143,238.47,238.36,4.1954]
[1738324170842,7.30002703,238.44,238.36,7.30002703]
[1738324171132,7.30002703,238.42,238.4,4.1946]
[1738324171331,4.1948,238.4,238.3,7.30002703]
[1738324171530,7.30002703,238.38,238.3,7.30002703]
[1738324171839,7.30002703,238.38,238.33,0.03208266]
[1738324172036,0.03105025,238.36,238.33,0.03208266]
[1738324172238,7.33107728,238.36,238.33,4.22808266]
[1738324172438,7.30002703,238.34,238.33,0.03208266]
[1738324173243,11.49582703,238.34,238.33,0.03208266]
[1738324183545,4.1957,238.35,238.33,0.03208266]
[1738324184647,0.03105025,238.36,238.33,0.03208266]
[1738324185247,0.03105025,238.36,238.35,4.1957]
[1738324186052,7.33107728,238.36,238.33,0.03208266]
[1738324186347,7.30002703,238.34,238.33,0.03208266]
[1738324187249,11.49582703,238.34,238.33,0.03208266]
[1738324194847,7.30002703,238.34,238.33,0.03208266]
[1738324196150,11.49582703,238.34,238.33,0.03208266]
[1738324201355,4.1958,238.34,238.33,0.03208266]
[1738324202054,11.49582703,238.34,238.33,0.03208266]
[1738324203359,12.61,238.31,238.22,114.79324529]
[1738324203559,7.30002703,238.25,238.22,114.79324529]
[1738324203761,11.49742703,238.25,238.22,114.79324529]
[1738324203954,11.49742703,238.25,238.16,149.34123216]
[1738324204352,0.0308497,238.23,238.19,0.02711973]
[1738324204856,0.0308497,238.23,238.22,4.1979]
[1738324212763,0.0308497,238.23,238.22,11.49792703]
[1738324217178,4.97e-05,238.23,238.22,11.49792703]
[1738324221276,4.97e-05,238.23,238.22,4.1979]
[1738324225572,4.97e-05,238.23,238.19,0.02711973]
[1738324225768,7.30007673,238.23,238.2,4.1983]
[1738324225969,7.30007673,238.23,238.19,0.02711973]
[1738324226174,11.49797673,238.23,238.19,0.02711973]
[1738324227474,4.1979,238.22,238.19,0.02711973]
[1738324227771,7.30007673,238.23,238.19,0.02711973]
[1738324227772,7.30002703,238.21,238.19,0.02711973]
[1738324228279,11.49822703,238.21,238.19,0.02711973]
[1738324228480,7.30002703,238.21,238.19,0.02711973]
[1738324228780,4.1983,238.2,238.19,0.02711973]
[1738324235690,7.30002703,238.21,238.19,0.02711973]
[1738324235890,11.49812703,238.21,238.19,0.02711973]
[1738324237891,7.30002703,238.21,238.19,0.02711973]
[1738324238097,4.97e-05,238.23,238.2,7.30002703]
[1738324238891,4.97e-05,238.23,238.22,4.1979]
[1738324241294,4.97e-05,238.23,238.2,4.1983]
[1738324241495,4.97e-05,238.23,238.19,0.02711973]
[1738324241897,4.97e-05,238.23,238.19,4.22551973]
[1738324242396,7.30002703,238.22,238.19,4.22551973]
[1738324242792,4.97e-05,238.23,238.19,0.02711973]
[1738324242999,4.97e-05,238.23,238.22,4.1979]
[1738324245099,4.97e-05,238.23,238.2,4.1983]
[1738324245398,7.30002703,238.22,238.2,4.1983]
[1738324245600,4.97e-05,238.23,238.19,0.02711973]
[1738324245806,4.97e-05,238.23,238.22,4.1979]
[1738324247398,4.97e-05,238.23,238.22,11.49792703]
[1738324248505,11.49542703,238.37,238.29,7.30002703]
[1738324248702,7.30002703,238.35,238.27,7.30002703]
[1738324249510,0.02874281,238.33,238.29,0.02778803]
[1738324249803,11.49652703,238.3,238.2,4.1688]
[1738324250102,7.30002703,238.27,238.2,4.1688]
[1738324250303,7.30002703,238.29,238.23,0.03066789]
[1738324250503,0.02716784,238.27,238.21,7.30002703]
[1738324250807,0.03098767,238.28,238.24,0.02918226]
[1738324251405,0.03098767,238.28,238.27,4.1971]
[1738324253908,0.03098767,238.28,238.26,4.1972]
[1738324254404,4.1974,238.25,238.24,0.02918226]
[1738324254708,4.1974,238.25,238.16,114.79324529]
[1738324254709,7.30002703,238.25,238.16,114.79324529]
[1738324255009,7.30002703,238.18,238.16,114.79324529]
[1738324255909,7.30002703,238.18,238.15,0.03216389]
[1738324256909,0.02906017,238.19,238.15,0.03216389]
[1738324257510,4.22756017,238.19,238.15,0.03216389]
[1738324258007,0.02906017,238.19,238.15,4.23136389]
[1738324260510,0.02906017,238.19,238.15,0.03216389]
[1738324262212,7.30002703,238.18,238.15,0.03216389]
[1738324263413,7.30002703,238.16,238.15,0.03216389]
[1738324263612,7.30002703,238.16,238.05,114.79324529]
[1738324263613,19.91002703,238.16,238.05,114.79324529]
[1738324263810,7.30002703,238.06,238.05,114.79324529]
[1738324265015,7.30002703,238.06,238.03,0.02768362]
[1738324265216,7.30002703,238.04,238.03,0.02768362]
[1738324266616,11.4471738,238.04,237.98,114.79324529]
[1738324266808,11.4471738,238.0,237.98,18.2888494]
[1738324267013,15.6491738,238.0,237.98,18.2888494]
[1738324267418,11.4471738,238.0,237.89,23.21859332]
[1738324267711,11.4471738,237.96,237.89,23.21859332]
[1738324267918,11.4471738,237.96,237.93,0.03167791]
[1738324269016,0.03133906,237.97,237.93,0.03167791]
[1738324269419,0.03133906,237.97,237.95,4.2027]
[1738324269621,3.906e-05,237.97,237.95,4.2027]
[1738324272514,3.906e-05,237.97,237.96,11.4471738]
[1738324272718,3.906e-05,237.97,237.95,4.2027]
[1738324273818,3.906e-05,237.97,237.96,4.2025]
[1738324274122,3.906e-05,237.97,237.96,15.6496738]
[1738324274618,2.7465,238.17,237.96,22.8943476]
[1738324274826,2.7465,238.17,238.03,11.4471738]
[1738324275323,1.421,238.17,238.03,11.4471738]